bitfinex-derivatives/quotes_BTCF0:USTF0_20250822
["timestamp","ask_amount","ask_price","bid_price","bid_amount"]
[1755854638288,1.22797142,113010.0,113000.0,0.14897444]
[1755854638583,1.22797142,113010.0,113000.0,0.42845802]
[1755854639085,1.17756142,113010.0,113000.0,0.42845802]
[1755854639288,1.22797142,113010.0,113000.0,0.42845802]
[1755854640189,1.22797142,113010.0,113000.0,0.14897444]
[1755854640380,1.22797142,113010.0,113000.0,0.42845802]
[1755854640582,1.22797142,113010.0,113000.0,0.10376444]
[1755854641087,1.22797142,113010.0,113000.0,0.13532444]
[1755854641588,1.22661142,113010.0,113000.0,0.13532444]
[1755854643191,1.22661142,113010.0,113000.0,0.10376444]
[1755854643983,1.22661142,113010.0,113000.0,0.13532444]
[1755854644391,1.50601301,113010.0,113000.0,0.41472603]
[1755854645191,1.50513301,113010.0,113000.0,0.41472603]
[1755854645687,1.45472301,113010.0,113000.0,0.38316603]
[1755854645884,1.81552301,113010.0,113000.0,0.31126603]
[1755854646082,1.86593301,113010.0,113000.0,0.03186444]
[1755854646683,1.86593301,113010.0,113000.0,0.05577286]
[1755854646883,2.08385301,113010.0,113000.0,0.05577286]
[1755854648291,2.08388743,113010.0,113000.0,0.05577279]
[1755854649288,2.08388743,113010.0,113000.0,0.03186444]
[1755854649696,2.08388743,113010.0,113000.0,0.05577312]
[1755854650097,2.08308743,113010.0,113000.0,0.05577312]
[1755854651298,2.03267743,113010.0,113000.0,0.00536312]
[1755854654099,2.03267743,113010.0,113000.0,0.02812312]
[1755854655305,1.19847743,113010.0,113000.0,0.02812312]
[1755854655493,2.03067743,113010.0,113000.0,0.02812312]
[1755854658601,2.03067743,113010.0,113000.0,0.00536312]
[1755854660596,1.75124142,113010.0,113000.0,0.00536312]
[1755854660795,2.03067743,113010.0,113000.0,0.02848312]
[1755854660996,2.03067743,113010.0,113000.0,0.04971312]
[1755854661494,2.02947743,113010.0,113000.0,0.04971312]
[1755854662901,1.75004142,113010.0,113000.0,0.04971312]
[1755854663102,2.02947743,113010.0,113000.0,0.04971312]
[1755854663295,2.02911743,113010.0,113000.0,0.04971312]
[1755854666803,2.02911743,113010.0,113000.0,0.04435]
[1755854667399,2.02911743,113010.0,113000.0,0.02312]
[1755854667600,2.02911743,113010.0,113000.0,0.04435]
[1755854670207,1.19847743,113010.0,113000.0,0.04435]
[1755854670404,2.02758084,113010.0,113000.0,0.04435]
[1755854670804,2.02758084,113010.0,113000.0,0.32376942]
[1755854675014,2.02758084,113010.0,113000.0,0.04435]
[1755854675310,2.02758084,113010.0,113000.0,0.32376942]
[1755854675811,2.02758084,113010.0,113000.0,0.04435]
[1755854677721,1.19846084,113010.0,113000.0,0.04435]
[1755854677906,2.02718084,113010.0,113000.0,0.04435]
[1755854679113,1.66638084,113010.0,113000.0,0.04435]
[1755854679314,2.02718084,113010.0,113000.0,0.04435]
[1755854679815,2.02718084,113010.0,113000.0,0.02312]
[1755854683612,1.66638084,113010.0,113000.0,0.02312]
[1755854683816,2.02718084,113010.0,113000.0,0.02312]
[1755854684016,2.02714084,113010.0,113000.0,0.02312]
[1755854685718,2.02714084,113010.0,113000.0,0.32376942]
[1755854686016,2.02714084,113010.0,113000.0,0.04435]
[1755854686209,2.02714084,113010.0,113000.0,0.32376942]
[1755854686717,2.02714084,113010.0,113000.0,0.355659]
[1755854687319,2.02714084,113010.0,113000.0,0.07623958]
[1755854687813,1.74772142,113010.0,113000.0,0.03188958]
[1755854688118,0.06388,113000.0,112990.0,0.05658958]
[1755854688319,0.98351884,113000.0,112990.0,0.05658958]
[1755854688714,0.98351884,113000.0,112980.0,0.39343239]
[1755854688715,0.03522,112990.0,112980.0,0.357569]
[1755854688916,1.17193942,112990.0,112980.0,0.05658958]
[1755854689313,1.17193942,112990.0,112980.0,0.07814958]
[1755854689716,1.17093942,112990.0,112980.0,0.357569]
[1755854690322,1.17093942,112990.0,112980.0,0.358569]
[1755854691716,1.17093942,112990.0,112980.0,0.32667942]
[1755854691923,1.17093942,112990.0,112980.0,0.35994942]
[1755854692415,1.17093942,112990.0,112980.0,0.36983942]
[1755854692610,0.89152,112990.0,112980.0,0.38625942]
[1755854692816,1.17093942,112990.0,112980.0,0.38625942]
[1755854696830,0.89152,112990.0,112980.0,0.38625942]
[1755854697032,1.17093942,112990.0,112980.0,0.38625942]
[1755854697232,1.17093942,112990.0,112980.0,0.07357]
[1755854697827,1.17093942,112990.0,112980.0,0.38625942]
[1755854700528,1.53173942,112990.0,112980.0,0.0257]
[1755854700834,1.53173942,112990.0,112980.0,0.001]
[1755854703536,1.53173942,112990.0,112980.0,0.0257]
[1755854704538,0.70309942,112990.0,112980.0,0.0257]
[1755854704730,1.53161942,112990.0,112980.0,0.0257]
[1755854705137,1.53157942,112990.0,112980.0,0.0257]
[1755854705335,0.70309942,112990.0,112980.0,0.0257]
[1755854705535,1.53157942,112990.0,112980.0,0.0257]
[1755854708435,1.53153942,112990.0,112980.0,0.0257]
[1755854708639,1.53153942,112990.0,112980.0,0.04726]
[1755854709335,1.25212,112990.0,112980.0,0.35994942]
[1755854709841,1.79557942,112990.0,112980.0,0.35994942]
[1755854710136,0.68572,112990.0,112980.0,0.68064884]
[1755854710338,1.1347,112990.0,112980.0,0.68064884]
[1755854710538,1.1367,112990.0,112980.0,0.68064884]
[1755854710741,1.1367,112990.0,112980.0,1.04144884]
[1755854712544,0.30826,112990.0,112980.0,1.04144884]
[1755854712746,1.13666,112990.0,112980.0,1.04144884]
[1755854712946,0.87262,112990.0,112980.0,1.04144884]
[1755854713944,0.04422,112990.0,112980.0,1.04144884]
[1755854714145,0.87262,112990.0,112980.0,1.04144884]
[1755854715754,1.53149942,112990.0,112980.0,0.08854]
[1755854715952,1.25208,112990.0,112980.0,0.0257]
[1755854716156,1.53149942,112990.0,112980.0,0.04726]
[1755854716355,1.53149942,112990.0,112980.0,0.05715]
[1755854716656,1.17069942,112990.0,112980.0,0.11428969]
[1755854716856,1.17069942,112990.0,112980.0,0.11328969]
[1755854717060,1.17169942,112990.0,112980.0,0.39270911]
[1755854717660,0.89228,112990.0,112980.0,0.42463127]
[1755854717858,1.17169942,112990.0,112980.0,0.14521185]
[1755854718256,1.25308,112990.0,112980.0,0.11194185]
[1755854718456,1.53249942,112990.0,112980.0,0.02390227]
[1755854718958,1.70437942,112990.0,112980.0,0.02390227]
[1755854719761,1.70437942,112990.0,112980.0,0.04807227]
[1755854721360,1.42496,112990.0,112980.0,0.06922227]
[1755854721562,1.70437942,112990.0,112980.0,0.06922227]
[1755854722261,1.42496,112990.0,112980.0,0.06922227]
[1755854722756,1.70437942,112990.0,112980.0,0.06922227]
[1755854724966,1.70437942,112990.0,112980.0,0.10270227]
[1755854725358,0.87597942,112990.0,112980.0,0.42138169]
[1755854725556,1.72057942,112990.0,112980.0,0.42138169]
[1755854725861,1.72057942,112990.0,112980.0,0.4773697]
[1755854726764,0.87597942,112990.0,112980.0,0.45346743]
[1755854727063,1.70191942,112990.0,112980.0,0.45346743]
[1755854727264,1.70191942,112990.0,112980.0,0.47737911]
[1755854727565,1.72057942,112990.0,112980.0,0.47737911]
[1755854727758,1.54869942,112990.0,112980.0,0.47737911]
[1755854729062,1.26928,112990.0,112980.0,0.47737911]
[1755854729263,1.54869942,112990.0,112980.0,0.19795969]
[1755854729563,1.54869942,112990.0,112980.0,0.45328068]
[1755854730165,1.26928,112990.0,112980.0,0.45328068]
[1755854730353,1.54869942,112990.0,112980.0,0.45328068]
[1755854731363,1.54869942,112990.0,112980.0,0.17386126]
[1755854731567,1.54869942,112990.0,112980.0,0.45328068]
[1755854731961,1.54869942,112990.0,112980.0,0.45328351]
[1755854734167,1.54869942,112990.0,112980.0,0.429369]
[1755854735367,1.54541942,112990.0,112980.0,0.429369]
[1755854736761,1.54541942,112990.0,112980.0,0.42139542]
[1755854736966,1.54469942,112990.0,112980.0,0.42139542]
[1755854737668,1.54469942,112990.0,112980.0,0.429369]
[1755854738863,1.54469942,112990.0,112980.0,0.14994958]
[1755854739063,1.54469942,112990.0,112980.0,0.429369]
[1755854741368,0.70409942,112990.0,112980.0,0.429369]
[1755854741567,1.54313942,112990.0,112980.0,0.429369]
[1755854743574,0.70409942,112990.0,112980.0,0.429369]
[1755854743762,1.26308,112990.0,112980.0,0.429369]
[1755854743967,1.54249942,112990.0,112980.0,0.429369]
[1755854745262,1.54189942,112990.0,112980.0,0.429369]
[1755854746777,1.54189942,112990.0,112980.0,0.42140165]
[1755854747877,0.70409942,112990.0,112980.0,0.42140165]
[1755854748081,1.54169942,112990.0,112980.0,0.42140165]
[1755854748579,1.26228,112990.0,112980.0,0.42140165]
[1755854749074,1.54169942,112990.0,112980.0,0.42140165]
[1755854750079,1.54033942,112990.0,112980.0,0.14259223]
[1755854750282,1.54033942,112990.0,112980.0,0.42201165]
[1755854751281,1.54033942,112990.0,112980.0,0.14259223]
[1755854751581,1.54033942,112990.0,112980.0,0.39808942]
[1755854754287,1.54033942,112990.0,112980.0,0.38325942]
[1755854754486,1.54033942,112990.0,112980.0,0.10384]
[1755854754685,1.54033942,112990.0,112980.0,0.38325942]
[1755854754882,1.54033942,112990.0,112980.0,0.34916942]
[1755854755284,1.26092,112990.0,112980.0,0.34916942]
[1755854755590,1.54033942,112990.0,112980.0,0.34916942]
[1755854756890,1.54033942,112990.0,112980.0,0.381059]
[1755854759699,0.70409942,112990.0,112980.0,0.381059]
[1755854759893,1.53729942,112990.0,112980.0,0.381059]
[1755854760485,1.53729942,112990.0,112980.0,0.10163958]
[1755854760698,1.53729942,112990.0,112980.0,0.381059]
[1755854761197,1.53729942,112990.0,112980.0,0.10163958]
[1755854761495,1.53729942,112990.0,112980.0,0.415149]
[1755854762596,1.53729942,112990.0,112980.0,0.10163958]
[1755854763096,1.53729942,112990.0,112980.0,0.07720958]
[1755854763695,1.53729942,112990.0,112980.0,0.356629]
[1755854764105,1.17649942,112990.0,112980.0,0.356629]
[1755854767594,1.17589942,112990.0,112980.0,0.356629]
[1755854768099,1.17589942,112990.0,112980.0,0.05609958]
[1755854768301,1.17589942,112990.0,112980.0,0.335519]
[1755854768894,1.17589942,112990.0,112980.0,0.357019]
[1755854769796,1.17589942,112990.0,112980.0,0.335519]
[1755854770395,1.17589942,112990.0,112980.0,0.357019]
[1755854772298,1.53669942,112990.0,112980.0,4e-05]
[1755854772601,1.53669942,112990.0,112980.0,0.02396226]
[1755854773901,1.81611884,112990.0,112980.0,0.02396226]
[1755854775695,1.53669942,112990.0,112980.0,0.02396226]
[1755854775904,2.08011884,112990.0,112980.0,0.02396226]
[1755854777606,2.08011884,112990.0,112980.0,0.02395274]
[1755854778002,2.08011884,112990.0,112980.0,4e-05]
[1755854779695,1.24751884,112990.0,112980.0,4e-05]
[1755854779900,2.07771884,112990.0,112980.0,4e-05]
[1755854781798,2.07763884,112990.0,112980.0,4e-05]
[1755854785607,2.07963884,112990.0,112980.0,4e-05]
[1755854786600,2.07963884,112990.0,112980.0,0.02256]
[1755854787499,2.07963884,112990.0,112980.0,4e-05]
[1755854790909,1.5208,112990.0,112980.0,4e-05]
[1755854791103,2.07963884,112990.0,112980.0,4e-05]
[1755854792013,2.04541884,112990.0,112960.0,0.3258792]
[1755854792303,0.34229942,112970.0,112960.0,0.14101978]
[1755854792503,1.17237942,112970.0,112960.0,0.14101978]
[1755854793611,1.53317942,112970.0,112960.0,0.09412978]
[1755854793807,1.81259884,112970.0,112960.0,0.09412978]
[1755854794005,1.54196512,112970.0,112960.0,0.09412978]
[1755854794411,1.82138454,112970.0,112960.0,0.09412978]
[1755854794609,1.54196512,112970.0,112960.0,0.04486]
[1755854794807,1.54196512,112970.0,112960.0,0.04586]
[1755854795011,1.82138454,112970.0,112960.0,0.02356]
[1755854795914,1.82338454,112970.0,112960.0,0.02256]
[1755854796614,1.82338454,112970.0,112960.0,4e-05]
[1755854798207,1.82438454,112970.0,112960.0,4e-05]
[1755854802021,1.2655457,112970.0,112960.0,4e-05]
[1755854802213,1.82438454,112970.0,112960.0,4e-05]
[1755854802417,1.2674257,112970.0,112960.0,0.07676]
[1755854802617,1.54684512,112970.0,112960.0,0.07676]
[1755854803020,1.54684512,112970.0,112960.0,0.04486]
[1755854803924,1.82626454,112970.0,112960.0,0.04486]
[1755854805121,0.4354657,112970.0,112960.0,0.04486]
[1755854805421,1.54876512,112970.0,112960.0,0.10213]
[1755854806022,1.2693457,112970.0,112960.0,0.10213]
[1755854806223,1.54876512,112970.0,112960.0,0.10213]
[1755854806725,1.36069899,112970.0,112960.0,0.10213]
[1755854807024,1.36069899,112970.0,112960.0,0.11712]
[1755854807226,0.25719957,112970.0,112960.0,0.11712]
[1755854807424,1.37009899,112970.0,112960.0,0.11712]
[1755854808727,1.37764899,112970.0,112960.0,0.11712]
[1755854811838,0.54416899,112970.0,112960.0,0.11712]
[1755854812231,0.8612557,112970.0,112960.0,0.67614884]
[1755854812437,0.8611757,112970.0,112960.0,0.67694884]
[1755854813846,0.8611757,112970.0,112960.0,0.70082165]
[1755854814140,1.14074512,112970.0,112960.0,0.70082165]
[1755854814536,0.8613257,112970.0,112960.0,0.70082165]
[1755854814735,0.0291257,112970.0,112960.0,1.06162165]
[1755854814941,0.8533757,112970.0,112960.0,1.06162165]
[1755854815542,0.8417457,112970.0,112960.0,1.31162165]
[1755854815733,0.8427457,112970.0,112960.0,1.31162165]
[1755854815939,0.8427457,112970.0,112960.0,1.31963842]
[1755854816139,0.0107857,112970.0,112960.0,1.31963842]
[1755854816339,0.001,112970.0,112960.0,1.31963842]
[1755854816949,0.001,112970.0,112960.0,1.34352017]
[1755854818447,0.001,112970.0,112960.0,1.31963842]
[1755854819350,0.85050072,112980.0,112970.0,0.11974]
[1755854819548,0.85050072,112980.0,112970.0,0.42304342]
[1755854819948,0.85805072,112980.0,112970.0,0.42304342]
[1755854820149,0.85805072,112980.0,112970.0,0.143624]
[1755854820342,0.85805072,112980.0,112970.0,0.42304342]
[1755854820744,0.01734,112980.0,112970.0,0.70246284]
[1755854820942,0.84826,112990.0,112980.0,0.11974]
[1755854821143,0.84798,112990.0,112980.0,0.504424]
[1755854821349,0.84798,112990.0,112980.0,1.06326284]
[1755854821546,0.00979,112990.0,112980.0,1.06326284]
[1755854821751,1.11968942,112990.0,112980.0,1.06326284]
[1755854822050,1.12837397,112990.0,112980.0,1.06326284]
[1755854822351,0.85095455,112990.0,112980.0,1.06326284]
[1755854822553,0.85195455,112990.0,112980.0,1.06326284]
[1755854823348,0.85195455,112990.0,112980.0,1.03937884]
[1755854823546,0.85950455,112990.0,112980.0,1.03937884]
[1755854824652,0.02902455,112990.0,112980.0,1.03937884]
[1755854824848,0.85938455,112990.0,112980.0,1.03937884]
[1755854825442,0.02147455,112990.0,112980.0,1.03937884]
[1755854825648,0.84204455,112990.0,112980.0,1.03937884]
[1755854826750,0.85938455,112990.0,112980.0,1.03937884]
[1755854827446,0.85738455,112990.0,112980.0,1.03937884]
[1755854830054,0.02702455,112990.0,112980.0,1.03937884]
[1755854830353,0.85730455,112990.0,112980.0,1.03937884]
[1755854836157,1.13672397,112990.0,112980.0,1.03937884]
[1755854837550,0.85730455,112990.0,112980.0,1.03937884]
[1755854843063,0.85730455,112990.0,112980.0,0.48054]
[1755854843261,0.85730455,112990.0,112980.0,1.03937884]
[1755854846866,0.85730455,112990.0,112980.0,1.06326284]
[1755854848354,1.13672397,112990.0,112980.0,1.06326284]
[1755854848559,0.85730455,112990.0,112980.0,1.06326284]
[1755854849666,0.85730455,112990.0,112980.0,1.09515242]
[1755854852363,0.85730455,112990.0,112980.0,0.793109]
[1755854853273,0.02702455,112990.0,112980.0,0.793109]
[1755854853572,0.85686455,112990.0,112980.0,0.793109]
[1755854857183,0.85686455,112990.0,112980.0,0.51368958]
[1755854857379,0.85686455,112990.0,112980.0,0.793109]
[1755854857582,1.13628397,112990.0,112980.0,0.432309]
[1755854858973,1.13628397,112990.0,112980.0,0.11953958]
[1755854859276,1.13628397,112990.0,112980.0,0.15288958]
[1755854859476,1.13628397,112990.0,112980.0,0.432309]
[1755854859881,1.27624397,112990.0,112980.0,0.432309]
[1755854861469,1.27624397,112990.0,112980.0,0.4562327]
[1755854861882,1.27624397,112990.0,112980.0,0.432309]
[1755854862281,1.27600397,112990.0,112980.0,0.432309]
[1755854862981,0.99658455,112990.0,112980.0,0.432309]
[1755854863283,1.27600397,112990.0,112980.0,0.432309]
[1755854863483,1.27600397,112990.0,112980.0,0.15288958]
[1755854863688,1.27600397,112990.0,112980.0,0.432309]
[1755854863884,1.27600397,112990.0,112980.0,0.15288958]
[1755854864273,1.27600397,112990.0,112980.0,0.1768126]
[1755854866088,0.44640397,112990.0,112980.0,0.1768126]
[1755854866387,1.27596397,112990.0,112980.0,0.1768126]
[1755854867679,0.99654455,112990.0,112980.0,0.1768126]
[1755854867880,1.27596397,112990.0,112980.0,0.1768126]
[1755854868185,1.27592397,112990.0,112980.0,0.1768126]
[1755854868890,0.99650455,112990.0,112980.0,0.1632626]
[1755854869080,1.27592397,112990.0,112980.0,0.1632626]
[1755854869386,1.27592397,112990.0,112980.0,0.13137302]
[1755854871578,1.91614339,112990.0,112980.0,0.04816302]
[1755854871783,1.91614339,112990.0,112980.0,0.02424]
[1755854872893,1.91594339,112990.0,112980.0,0.02424]
[1755854874790,1.08662339,112990.0,112980.0,0.02424]
[1755854875089,1.91594339,112990.0,112980.0,0.02424]
[1755854878594,1.08662339,112990.0,112980.0,0.02424]
[1755854878794,1.91582339,112990.0,112980.0,0.02424]
[1755854880194,1.91574339,112990.0,112980.0,0.02424]
[1755854880398,0.16698455,112990.0,112980.0,0.10468]
[1755854880595,0.99606455,112990.0,112980.0,0.48036]
[1755854880794,1.27548397,112990.0,112980.0,0.75977942]
[1755854881093,0.44640397,112990.0,112980.0,0.75977942]
[1755854881282,1.27548397,112990.0,112980.0,0.75977942]
[1755854881793,1.27548397,112990.0,112980.0,0.78370244]
[1755854881989,1.27544397,112990.0,112980.0,0.78370244]
[1755854882696,0.44640397,112990.0,112980.0,0.78370244]
[1755854882992,1.27544397,112990.0,112980.0,0.78370244]
[1755854883190,0.44640397,112990.0,112980.0,0.78370244]
[1755854883396,0.44640397,112990.0,112980.0,0.50428302]
[1755854883597,1.27540397,112990.0,112980.0,0.78370244]
[1755854883896,0.16698455,112990.0,112980.0,1.06312186]
[1755854884097,1.27540397,112990.0,112980.0,1.06312186]
[1755854884302,0.99598455,112990.0,112980.0,1.06312186]
[1755854884596,0.99598455,112990.0,112980.0,0.78370244]
[1755854886797,0.85602455,112990.0,112980.0,0.78370244]
[1755854886999,0.85602455,112990.0,112980.0,0.75977942]
[1755854887496,1.13544397,112990.0,112980.0,0.75977942]
[1755854889393,0.85586455,112990.0,112980.0,1.03919884]
[1755854889695,0.001,112990.0,112980.0,1.03919884]
[1755854890197,0.001,112990.0,112980.0,2.26065958]
[1755854890389,0.001,112990.0,112980.0,1.07188842]
[1755854890585,0.001,112990.0,112980.0,1.90068842]
[1755854890792,0.001,112990.0,112980.0,1.98920672]
[1755854890997,0.1310879,113000.0,112980.0,1.28020991]
[1755854891296,0.13196,113000.0,112990.0,0.78322261]
[1755854892097,0.13196,113000.0,112990.0,0.75933942]
[1755854892798,0.00972,113000.0,112990.0,0.75933942]
[1755854893099,0.90716142,113010.0,112990.0,0.75933942]
[1755854893399,1.19630084,113010.0,113000.0,0.75933942]
[1755854894998,1.20596157,113010.0,113000.0,0.75933942]
[1755854895803,0.92654215,113010.0,113000.0,0.75933942]
[1755854895993,1.20596157,113010.0,113000.0,0.75933942]
[1755854896999,0.92654215,113010.0,113000.0,1.03875884]
[1755854897400,1.20596157,113010.0,113000.0,0.75933942]
[1755854897598,0.08047215,113010.0,113000.0,1.03875884]
[1755854897800,0.08047215,113010.0,113000.0,1.06264203]
[1755854897801,0.90041142,113010.0,113000.0,1.06264203]
[1755854897991,0.07181142,113010.0,113000.0,1.06264203]
[1755854898803,0.001,113010.0,113000.0,1.15114463]
[1755854899001,0.84503705,113020.0,113010.0,0.07069]
[1755854899301,0.85420705,113020.0,113010.0,0.79948333]
[1755854899501,0.83769,113020.0,113010.0,1.07890275]
[1755854899702,0.00755,113050.0,113030.0,0.1769527]
[1755854900001,0.07005742,113050.0,113040.0,1.43970874]
[1755854900205,0.04484,113060.0,113040.0,1.50433894]
[1755854900497,0.07712,113060.0,113050.0,0.68685047]
[1755854900708,0.0860081,113060.0,113050.0,0.75754047]
[1755854901492,0.36509857,113060.0,113050.0,0.11765]
[1755854901902,0.0860081,113060.0,113050.0,0.47845]
[1755854902304,0.0870081,113060.0,113050.0,0.47845]
[1755854903406,0.0880081,113060.0,113050.0,0.47845]
[1755854904804,0.16021753,113060.0,113050.0,0.47845]
[1755854915209,0.439308,113060.0,113050.0,0.44681]
[1755854915408,0.439308,113060.0,113050.0,0.08601]
[1755854915614,0.439308,113060.0,113050.0,0.11765]
[1755854917205,0.407508,113060.0,113050.0,0.08601]
[1755854917405,0.439308,113060.0,113050.0,0.11765]
[1755854917807,0.439308,113060.0,113050.0,0.08601]
[1755854918006,0.439308,113060.0,113050.0,0.0719]
[1755854918209,0.439308,113060.0,113050.0,0.11765]
[1755854919412,1.267028,113060.0,113050.0,0.11765]
[1755854920515,1.267028,113060.0,113050.0,0.08601]
[1755854920717,1.243918,113060.0,113050.0,0.08601]
[1755854920917,1.604718,113060.0,113050.0,0.08601]
[1755854921116,1.604718,113060.0,113050.0,0.0719]
[1755854921515,1.604718,113060.0,113050.0,0.02494]
[1755854923415,0.800108,113060.0,113050.0,0.02494]
[1755854923624,1.627668,113060.0,113050.0,0.05618]
[1755854924319,1.628668,113060.0,113050.0,0.05618]
[1755854924509,1.629668,113060.0,113050.0,0.05618]
[1755854925722,1.741268,113060.0,113050.0,0.05618]
[1755854927024,0.913708,113060.0,113050.0,0.05618]
[1755854927218,1.741188,113060.0,113050.0,0.05618]
[1755854927620,1.741188,113060.0,113050.0,0.0719]
[1755854930123,1.741148,113060.0,113050.0,0.0719]
[1755854932933,0.913708,113060.0,113050.0,0.0719]
[1755854933129,1.741028,113060.0,113050.0,0.0719]
[1755854934424,2.02035599,113060.0,113050.0,0.0719]
[1755854934826,1.19303599,113060.0,113050.0,0.0719]
[1755854935030,2.02027599,113060.0,113050.0,0.0719]
[1755854937430,1.19303599,113060.0,113050.0,0.0719]
[1755854937632,2.02023599,113060.0,113050.0,0.0719]
[1755854938938,1.46181753,113060.0,113050.0,0.0719]
[1755854939138,2.02023599,113060.0,113050.0,0.0719]
[1755854940138,1.65943599,113060.0,113050.0,0.0719]
[1755854940341,2.02015599,113060.0,113050.0,0.11998]
[1755854940746,2.02015599,113060.0,113050.0,0.0719]
[1755854941749,2.02011599,113060.0,113050.0,0.0719]
[1755854942350,1.10085753,113060.0,113050.0,0.76078923]
[1755854942550,0.27381753,113060.0,113050.0,1.12846196]
[1755854942745,1.06901753,113060.0,113050.0,0.84925273]
[1755854942952,0.05054155,113060.0,113050.0,1.17018805]
[1755854943552,0.05054155,113060.0,113050.0,1.20207763]
[1755854943753,0.05054155,113060.0,113050.0,1.25904436]
[1755854944149,0.05054155,113060.0,113050.0,1.21828113]
[1755854944348,0.05054155,113060.0,113050.0,0.97072466]
[1755854944749,0.85779,113080.0,113070.0,0.11938]
[1755854944950,0.85779,113080.0,113070.0,0.80722034]
[1755854945150,0.03087,113080.0,113070.0,0.80722034]
[1755854946047,0.03687,113080.0,113070.0,0.80722034]
[1755854946656,0.03487,113080.0,113070.0,0.80722034]
[1755854946856,0.04454397,113080.0,113070.0,0.80722034]
[1755854947052,0.11565822,113080.0,113070.0,0.78335142]
[1755854947356,0.03587,113080.0,113070.0,0.78335142]
[1755854947549,0.005,113080.0,113070.0,0.87179932]
[1755854947754,0.003,113080.0,113070.0,0.87179932]
[1755854947950,0.003,113080.0,113070.0,0.78335142]
[1755854948657,0.003,113080.0,113070.0,0.87179932]
[1755854949357,0.003,113080.0,113070.0,0.50431762]
[1755854949563,0.003,113080.0,113070.0,0.78335142]
[1755854949752,0.02518,113080.0,113070.0,0.78335142]
[1755854950358,0.05991,113080.0,113070.0,0.50431762]
[1755854951752,0.05991,113080.0,113070.0,0.78335142]
[1755854956560,0.05991,113080.0,113070.0,0.50431762]
[1755854956752,0.05991,113080.0,113070.0,0.78335142]
[1755854958760,0.05676,113080.0,113070.0,0.78335142]
[1755854959654,0.003,113080.0,113070.0,0.78335142]
[1755854960255,0.05637,113080.0,113070.0,0.78335142]
[1755854964264,0.05637,113080.0,113070.0,0.80722034]
[1755854964458,0.05637,113080.0,113070.0,0.78335142]
[1755854965061,0.05637,113080.0,113070.0,0.80722034]
[1755854965258,0.05637,113080.0,113070.0,0.78335142]
[1755854967564,0.02479,113080.0,113070.0,0.78335142]
[1755854968764,0.003,113080.0,113070.0,0.78335142]
[1755854971871,0.08020717,113090.0,113080.0,0.11752]
[1755854972167,0.8525238,113100.0,113090.0,0.09182]
[1755854972371,1.68730804,113100.0,113090.0,0.11752]
[1755854973165,0.82988804,113100.0,113090.0,0.1421701]
[1755854973366,1.68930804,113100.0,113090.0,0.1421701]
[1755854973680,1.41027424,113100.0,113090.0,0.1421701]
[1755854973978,1.52998804,113100.0,113090.0,0.1421701]
[1755854974361,1.60154241,113100.0,113090.0,0.1421701]
[1755854974670,1.60354241,113100.0,113090.0,0.1421701]
[1755854975872,1.32450861,113100.0,113090.0,0.1421701]
[1755854976073,1.60354241,113100.0,113090.0,0.1421701]
[1755854977269,1.60354241,113100.0,113090.0,0.16603902]
[1755854978868,1.60354241,113100.0,113090.0,0.1421701]
[1755854979076,1.60254241,113100.0,113090.0,0.1421701]
[1755854979280,1.32250861,113100.0,113090.0,0.1421701]
[1755854979772,1.60154241,113100.0,113090.0,0.1421701]
[1755854980779,1.60154241,113100.0,113090.0,0.16603902]
[1755854981078,1.60154241,113100.0,113090.0,0.1421701]
[1755854981468,1.32250861,113100.0,113090.0,0.1421701]
[1755854981774,1.60154241,113100.0,113090.0,0.1421701]
[1755854981961,1.60154241,113100.0,113090.0,0.1092501]
[1755854982366,1.88052181,113100.0,113090.0,0.1092501]
[1755854984370,0.49666861,113100.0,113090.0,0.1092501]
[1755854984571,1.60115521,113100.0,113090.0,0.1421701]
[1755854984776,1.88016181,113100.0,113090.0,0.1421701]
[1755854985780,2.08200181,113100.0,113090.0,0.1421701]
[1755854985976,1.52398861,113100.0,113090.0,0.1421701]
[1755854986175,1.25652181,113100.0,113090.0,0.1421701]
[1755854986571,2.08192181,113100.0,113090.0,0.1421701]
[1755854986771,1.52390861,113100.0,113090.0,0.1421701]
[1755854986974,2.08192181,113100.0,113090.0,0.1421701]
[1755854987683,2.08192181,113100.0,113090.0,0.1092501]
[1755854987873,2.08192181,113100.0,113090.0,0.0583301]
[1755854988372,2.08192181,113100.0,113090.0,0.0483401]
[1755854994986,2.08172181,113100.0,113090.0,0.0483401]
[1755854995687,2.08164181,113100.0,113090.0,0.0580101]
[1755854998286,2.08164181,113100.0,113090.0,0.0483401]
[1755854999789,2.36064841,113100.0,113090.0,0.0483401]
[1755855000091,0.07873,113090.0,113080.0,0.02386892]
[1755855000387,0.9975432,113090.0,113070.0,0.03182523]
[1755855000588,1.7748432,113080.0,113070.0,0.02389842]
[1755855000891,1.7748432,113080.0,113070.0,0.03356842]
[1755855001288,1.7748432,113080.0,113070.0,0.0318]
[1755855001999,1.7748432,113080.0,113070.0,0.05632]
[1755855002294,1.49595855,113080.0,113070.0,0.05632]
[1755855002492,1.53224855,113080.0,113070.0,0.05632]
[1755855003091,0.06736,113070.0,113060.0,0.07113]
[1755855003287,0.70728855,113070.0,113060.0,0.05632]
[1755855003492,0.70528855,113070.0,113060.0,0.12172]
[1755855003693,1.53020855,113070.0,113060.0,0.12172]
[1755855004292,1.53020855,113070.0,113060.0,0.12372]
[1755855005091,1.53020855,113070.0,113060.0,0.12272]
[1755855005395,1.53012855,113070.0,113060.0,0.12372]
[1755855005994,1.53012855,113070.0,113060.0,0.08947]
[1755855006195,1.53012855,113070.0,113060.0,0.07466]
[1755855006494,1.53012855,113070.0,113060.0,0.03619]
[1755855006793,0.70528855,113070.0,113060.0,0.03619]
[1755855006992,1.8102171,113070.0,113060.0,0.03519]
[1755855007290,1.53108855,113070.0,113060.0,0.03519]
[1755855007986,0.70628855,113070.0,113060.0,0.03519]
[1755855008181,1.53212855,113070.0,113060.0,0.03419]
[1755855008481,1.53212855,113070.0,113060.0,0.05632]
[1755855009895,0.70728855,113070.0,113060.0,0.05632]
[1755855010084,1.75168855,113070.0,113060.0,0.05632]
[1755855011592,1.75168855,113070.0,113060.0,0.02452]
[1755855011593,1.75160855,113070.0,113060.0,0.02452]
[1755855011793,2.0307371,113070.0,113060.0,0.02452]
[1755855012496,2.0306971,113070.0,113060.0,0.02452]
[1755855012687,1.75156855,113070.0,113060.0,0.02452]
[1755855012887,2.25156855,113070.0,113060.0,0.02452]
[1755855013394,2.25156855,113070.0,113060.0,0.03419]
[1755855013694,1.42684855,113070.0,113060.0,0.03419]
[1755855013895,2.25152855,113070.0,113060.0,0.03419]
[1755855014989,1.42684855,113070.0,113060.0,0.03419]
[1755855015189,2.25152855,113070.0,113060.0,0.08747]